Cogmind - Beta 10.1 @@@ ROGUE MODE // 2020.10.22 @ 14:46:38 Player: Shamgod Result: Destroyed by H-66 Slayer with Heavy Assault Rifle Performance ------------- Evolutions (3) 1500 Regions Visited (10) 2000 Robots Destroyed (118) 590 Value Destroyed (3902) 3902 Prototype IDs (38) 760 Alien Tech Used (0) 0 Bonus (1046) 1046 TOTAL SCORE: 9798 Bonus ------- High Alert Combat Kills 130 Follower Combat Kills 316 Aligned with FarCom 300 Met Data Miner 300 Cogmind --------- Core Integrity 0/700 Matter 283/300 Energy 307/500 System Corruption 1% Temperature Cool (0) Movement Core (1200) Ox23 Location -6/Proximity Caves Parts ------- > --- POWER (1) -------- (None) > --- PROPULSION (3) --- (None) > --- UTILITY (5) ------ High-capacity Storage Unit High-capacity Storage Unit High-capacity Battery Improved Signal Interpreter Makeshift Armor Plating > --- WEAPON (4) ------- (None) > --- INVENTORY (20) --- Improved Heat Sink Experimental Sensor Array Experimental Sensor Array Signal Interpreter Improved Signal Interpreter Makeshift Terrain Scanner Hardened Medium Armor Plating Experimental Thermal Shield Hacking Suite Peak State ------------ > --- POWER ------------ Enhanced Nuclear Core > --- PROPULSION ------- Advanced Treads Advanced Treads Enhanced Flexi-carbon Leg > --- UTILITY ---------- High-capacity Storage Unit High-capacity Storage Unit High-capacity Storage Unit Improved Signal Interpreter Experimental Thermal Shield > --- WEAPON ----------- XL Autogun Array > --- INVENTORY -------- Light Angular Momentum Engine Light Angular Momentum Engine Advanced Treads Advanced Treads Advanced Treads Improved Heat Sink High-capacity Battery Experimental Sensor Array Experimental Sensor Array Signal Interpreter Improved Signal Interpreter Makeshift Terrain Scanner Hardened Medium Armor Plating Medium Reactive Plating Medium Reactive Plating Hacking Suite Shock Rifle Shock Rifle Arc Projector Advanced Beam Rifle Advanced Beam Rifle Advanced Beam Rifle Gatling Laser Improved EM Pulse Cannon Minigun Improved Grenade Launcher Improved Grenade Launcher Katana [Rating: 77] Favorites ----------- Power Enhanced Nuclear Core Engine Heavy Ion Engine Power Core Enhanced Nuclear Core Propulsion Advanced Treads Treads Advanced Treads Leg Flexi-carbon Leg Wheel Compact Wheel Utility High-capacity Storage Unit Device Experimental Sensor Array Storage High-capacity Storage Unit Processor Improved Signal Interpreter Hackware System Shield Protection Hardened Light Armor Plating Weapon XL Autogun Array Energy Gun Advanced Beam Rifle Energy Cannon Beam Cannon Ballistic Gun XL Autogun Array Ballistic Cannon Improved Light Cannon Launcher Grenade Launcher Impact Weapon Heavy Mace Slashing Weapon Katana Build | -11 -10 -10 -10 -9 -8 -7 -7 -7 -7 -6 ------- Run | Scr Mat Min Exi Min Mat Fac Low Low Dat Pro Slots Evolved 6 | . . . . . 4 2 . . . . Power . | . . . . . . . . . . . Propulsion 1 | . . . . . 1 . . . . . Utility 3 | . . . . . 2 1 . . . . Weapon 2 | . . . . . 1 1 . . . . Parts Attached 164 | 8 28 1 1 . 63 9 9 9 . 36 Power 14 | 2 4 . . . 3 1 . 1 . 3 Engine 7 | 2 2 . . . 1 . . . . 2 Core 7 | . 2 . . . 2 1 . 1 . 1 Reactor . | . . . . . . . . . . . Propulsion 32 | 2 10 . . . 11 . . 1 . 8 Treads 18 | 1 3 . . . 10 . . 1 . 3 Leg 6 | . 1 . . . . . . . . 5 Wheel 8 | 1 6 . . . 1 . . . . . Hover . | . . . . . . . . . . . Flight . | . . . . . . . . . . . Utility 65 | 2 2 . . . 26 7 9 7 . 12 Device 34 | . . . . . 13 4 7 4 . 6 Storage 7 | 2 2 . . . . 1 . . . 2 Processor 2 | . . . . . 2 . . . . . Hackware 4 | . . . . . 3 1 . . . . Protection 18 | . . . . . 8 1 2 3 . 4 Artifact . | . . . . . . . . . . . Weapon 53 | 2 12 1 1 . 23 1 . . . 13 Energy Gun 16 | . 1 . . . 8 . . . . 7 Energy Cannon 2 | . 1 . . . . . . . . 1 Ballistic Gun 14 | 2 7 . . . 2 1 . . . 2 Ballistic Cannon 6 | . . . 1 . 5 . . . . . Launcher 9 | . 3 1 . . 3 . . . . 2 Special Weapon . | . . . . . . . . . . . Impact Weapon 5 | . . . . . 5 . . . . . Slashing Weapon 1 | . . . . . . . . . . 1 Piercing Weapon . | . . . . . . . . . . . Special Melee Weapon . | . . . . . . . . . . . Unidentified Prototypes 7 | . 1 . . . 3 1 . . . 2 Parts Lost 35 | . 4 . . . 1 . . . . 30 Power 4 | . . . . . . . . . . 4 Propulsion 11 | . 1 . . . 1 . . . . 9 Utility 3 | . . . . . . . . . . 3 Weapon 17 | . 3 . . . . . . . . 14 Highest Loss Streak 15 | . 2 . . . 1 . . . . 15 Average Slot Usage (%) 87 | . 98 100 99 100 99 76 76 76 76 76 Engine 4 | . 10 14 14 14 6 . . . . . Core 4 | . 3 . . . 2 6 7 7 7 4 Treads 18 | . 8 . . . 26 23 23 23 23 14 Wheel 5 | . 19 28 28 28 . . . . . . Device 5 | . . . . . 8 6 6 6 . 4 Storage 23 | . 28 28 28 28 18 23 23 23 23 24 Processor 4 | . . . . . 3 7 7 7 7 7 Protection 1 | . . . . . 2 . . . 7 . Energy Gun 2 | . 1 . . . 8 . . . . 3 Ballistic Gun 8 | . 20 16 6 . 4 7 7 7 7 6 Ballistic Cannon 3 | . . . 7 14 9 . . . . . Launcher 1 | . 1 11 14 14 1 . . . . . Naked Turns . | . . . . . . . . . . . Heaviest Build 145 | 16 77 77 79 79 91 127 127 145 145 139 Greatest Support 93 | 20 32 32 32 32 93 66 66 66 66 66 Greatest Overweight (x) 36 | 1 7 2 2 2 3 1 1 2 2 36 Average Overweight (x) 1 | . 3 2 2 2 . 1 1 1 2 1 Largest Inventory Capacity 28 | 8 20 20 20 20 20 28 28 28 28 28 Average Capacity 23 | 6 19 20 20 20 20 28 28 28 28 27 Most Carried 28 | 7 20 20 20 20 20 28 28 28 28 28 Average Carried 21 | 4 16 20 19 20 19 23 27 27 28 22 Final Capacity 28 | 8 20 20 20 20 20 28 28 28 28 20 Final Carried 28 | 7 20 20 20 20 20 27 28 28 28 9 Class Distribution -------------------- 55% | Hauler-Skirmisher 27% | Hauler-Mutant 8% | Hauler-Assassin 3% | Hauler-Tank Dominant Class ---------------- Hauler-Mutant | -10/Materials Hauler-Mutant | -10/Mines Hauler-Mutant | -10/Exiles Hauler-Mutant | -9/Mines Hauler-Skirmisher | -8/Materials Hauler-Skirmisher | -7/Factory Hauler-Skirmisher | -7/Lower Caves Hauler-Skirmisher | -7/Lower Caves Hauler-Tank | -7/Data Miner Hauler-Skirmisher | -6/Proximity Caves Resources | -11 -10 -10 -10 -9 -8 -7 -7 -7 -7 -6 ----------- Run | Scr Mat Min Exi Min Mat Fac Low Low Dat Pro Matter Collected 4149 | 296 678 . . . 1152 496 440 371 . 716 Remotely . | . . . . . . . . . . . Salvage Created 4270 | 74 769 13 . . 1022 598 582 403 . 809 Parts 244 | 2 49 . . . 82 29 25 23 . 34 Haulers Intercepted 6 | . 2 . . . 4 . . . . . Recyclers Shooed 2 | . . . . . 1 1 . . . . Parts Field Recycled . | . . . . . . . . . . . Retrieved Matter . | . . . . . . . . . . . Parts Self-Destructed 97 | . . . . . . . 29 30 . 38 Prevented 3 | . . . . . . . . . . 3 Kills | -11 -10 -10 -10 -9 -8 -7 -7 -7 -7 -6 ------- Run | Scr Mat Min Exi Min Mat Fac Low Low Dat Pro Combat Hostiles Destroyed 92 | . 17 2 . . 19 11 12 11 . 20 Melee 2 | . . . . . . . . . . 2 Guns 69 | . 10 . . . 13 11 12 11 . 12 Cannons 10 | . 3 . . . 6 . . . . 1 AOE 10 | . 4 2 . . . . . . . 4 Classes Destroyed 14 | 1 8 1 . . 2 1 . . . 1 Worker 3 | . 1 . . . 2 . . . . . Builder 2 | . 1 . . . 1 . . . . . Hauler 6 | . 2 . . . 4 . . . . . Recycler 3 | 1 . . . . 2 . . . . . Mechanic 1 | . 1 . . . . . . . . . Operator 2 | . 1 . . . 1 . . . . . Watcher 9 | . 3 . . . 4 2 . . . . Swarmer 31 | . 3 . . . 9 4 2 6 . 7 Grunt 37 | . 14 . . . 2 4 8 3 . 6 Duelist 1 | . . . . . . . . . . 1 Sentry 12 | . . . . . 7 2 2 1 . . Hunter 6 | . . . . . 1 . . . . 5 Programmer 3 | . . . . . . 1 . 1 . 1 Assembled 2 | . . 2 . . . . . . . . Best Kill Streak 8 | 1 3 2 . . 8 4 6 4 . 6 Combat Bots Only 6 | . 3 2 . . 6 4 6 4 . 6 Max Kills in Single Turn 3 | 1 3 2 . . 2 2 1 1 . 2 Gunslinging . | . . . . . . . . . . . Exploded 2 | . 2 2 . . . . . . . 2 Melee 1 | . . . . . . . . . . 1 Uniques/NPCs Destroyed . | . . . . . . . . . . . Combat | -11 -10 -10 -10 -9 -8 -7 -7 -7 -7 -6 -------- Run | Scr Mat Min Exi Min Mat Fac Low Low Dat Pro Damage Taken 7179 | . 1104 20 . . 1094 155 383 233 . 4190 Core 1159 | . 200 . . . 253 . 35 11 . 660 Absorbed by Shields . | . . . . . . . . . . . Core Remaining (%) 58 | 100 . . . 20 54 . . . . . Volleys Fired 300 | 4 96 3 . . 67 24 22 21 . 63 Largest 3 | 2 2 2 . . 3 1 1 1 . 3 Hottest 161 | 40 85 50 . . 161 60 60 60 . 139 Shots Fired 529 | 8 186 5 . . 177 24 22 21 . 86 Gun 425 | 8 168 3 . . 99 24 22 21 . 80 Cannon 92 | . 14 . . . 76 . . . . 2 Launcher 12 | . 4 2 . . 2 . . . . 4 Special . | . . . . . . . . . . . Kinetic 374 | 8 155 3 . . 105 24 22 21 . 36 Thermal 114 | . 27 . . . 60 . . . . 27 Explosive 12 | . 4 2 . . 2 . . . . 4 Electromagnetic 29 | . . . . . 10 . . . . 19 Robot Hit Streak 21 | 4 9 1 . . 17 21 15 7 . 12 Robot Miss Streak 6 | 1 6 1 . . 4 5 5 5 . 4 Penetration Max . | . . . . . . . . . . . Secondary Targets 3 | . 2 . . . . . . . . 1 Max Gunslinging Chain 1 | . 1 . . . . . . . . 1 Shots Hit Robots 352 | 7 118 2 . . 97 23 21 20 . 64 Core Hits 208 | 2 57 6 . . 44 21 22 14 . 42 Critical Hits 1 | . . . . . 1 . . . . . Critical Kills . | . . . . . . . . . . . Critical Parts Destroyed 1 | . . . . . 1 . . . . . Melee Attacks 29 | . . . . . 24 . . . . 5 Impact 24 | . . . . . 24 . . . . . Slashing 5 | . . . . . . . . . . 5 Piercing . | . . . . . . . . . . . Sneak Attacks 1 | . . . . . 1 . . . . . Combat Hostiles . | . . . . . . . . . . . Follow-up Attacks . | . . . . . . . . . . . Damage Inflicted 10360 | 80 1761 188 . . 1882 1526 1150 1042 . 2731 Guns 8062 | 80 1276 28 . . 1022 1526 1150 1042 . 1938 Cannons 911 | . 158 . . . 700 . . . . 53 Explosions 1127 | . 327 160 . . 36 . . . . 604 Melee 260 | . . . . . 124 . . . . 136 Ramming . | . . . . . . . . . . . Kinetic 7291 | 80 1161 28 . . 892 1526 1150 1042 . 1412 Thermal 1321 | . 273 . . . 668 . . . . 380 Explosive 1127 | . 327 160 . . 36 . . . . 604 Electromagnetic 361 | . . . . . 162 . . . . 199 Impact 124 | . . . . . 124 . . . . . Slashing 136 | . . . . . . . . . . 136 Piercing . | . . . . . . . . . . . Highest Corruption 3 | . . . . . 3 . . . . 1 Average Corruption 1 | . . . . . 3 . . . . 1 Corruption Purged . | . . . . . . . . . . . Effects 8 | . . . . . 6 . . . . 2 Message Errors 3 | . . . . . 2 . . . . 1 Matter Fused 1 | . . . . . 1 . . . . . Heat Flow Errors 2 | . . . . . 2 . . . . . Data Loss (minor) 2 | . . . . . 1 . . . . 1 Overload Shots . | . . . . . . . . . . . Overflow Damage 46 | . 11 1 . . 33 . . . . 1 Projectiles 41 | . 8 . . . 33 . . . . . Explosions 5 | . 3 1 . . . . . . . 1 Melee . | . . . . . . . . . . . Knockbacks 4 | . . . . . 4 . . . . . Impact . | . . . . . . . . . . . Kinetic 4 | . . . . . 4 . . . . . Secondary . | . . . . . . . . . . . Self-Inflicted Damage . | . . . . . . . . . . . Shots . | . . . . . . . . . . . Rammed 1 | . . . . . . . . . . 1 Targets Rammed 1 | . . . . . . . . . . 1 Kicked . | . . . . . . . . . . . Crushed . | . . . . . . . . . . . Highest Temperature 556 | . 248 17 . . 556 270 324 273 . 488 Average Temperature 124 | . 59 13 . . 151 101 141 103 . 132 Received Heat Transfer 1273 | . 516 40 . . 180 24 117 27 . 369 Effects 28 | . . . . . 20 1 . . . 7 Shutdowns 3 | . . . . . 2 . . . . 1 Energy Bleed 8 | . . . . . 5 1 . . . 2 Interference 1 | . . . . . . . . . . 1 Matter Decay 2 | . . . . . 2 . . . . . Damage (minor) 6 | . . . . . 6 . . . . . Damage (major) 6 | . . . . . 3 . . . . 3 Damage (core) 2 | . . . . . 2 . . . . . Siege Activations . | . . . . . . . . . . . Robots Corrupted 1 | . . . . . . . . . . 1 Combat Hostiles 1 | . . . . . . . . . . 1 Parts Fried 5 | . . . . . 1 . . . . 4 Impact Corruptions . | . . . . . . . . . . . Robots Melted . | . . . . . . . . . . . Combat Hostiles . | . . . . . . . . . . . Parts Melted . | . . . . . . . . . . . Heat Transferred 2639 | . 493 . . . 1443 . . . . 703 Parts Sabotaged . | . . . . . . . . . . . Parts Stolen . | . . . . . . . . . . . Parts Stripped . | . . . . . . . . . . . Power Chain Reactions . | . . . . . . . . . . . Missiles Intercepted . | . . . . . . . . . . . Alert | -11 -10 -10 -10 -9 -8 -7 -7 -7 -7 -6 ------- Run | Scr Mat Min Exi Min Mat Fac Low Low Dat Pro Peak Influence 695 | 5 158 60 . . 295 695 . . . . Initial 129 | . 3 24 . . . 129 . . . . Average 146 | 3 61 51 . . 161 250 . . . . Maximum Alert Level 2 | . . . . . 1 2 . . . . Low Security (%) 77 | 100 100 100 . 100 64 70 . . . . Level 1 17 | . . . . . 35 3 . . . . Level 2 5 | . . . . . . 25 . . . . Level 3 . | . . . . . . . . . . . Level 4 . | . . . . . . . . . . . Level 5 . | . . . . . . . . . . . High Security . | . . . . . . . . . . . Max Security . | . . . . . . . . . . . Squads Dispatched 10 | . 6 . . . 3 1 . . . . Investigation 5 | . 2 . . . 3 . . . . . Extermination 1 | . . . . . . 1 . . . . Reinforcement 4 | . 4 . . . . . . . . . Assault . | . . . . . . . . . . . Garrison . | . . . . . . . . . . . Intercept . | . . . . . . . . . . . Construction Impeded . | . . . . . . . . . . . Haulers Reinforced . | . . . . . . . . . . . Stealth | -11 -10 -10 -10 -9 -8 -7 -7 -7 -7 -6 --------- Run | Scr Mat Min Exi Min Mat Fac Low Low Dat Pro Distress Signals 2 | . 1 . . . 1 . . . . . Communications Jammed . | . . . . . . . . . . . Distress Signals . | . . . . . . . . . . . Times Spotted 142 | . 40 8 . . 29 14 14 11 . 26 Peak Tracking Total 8 | . 6 8 . . 5 4 7 4 . 7 Tactical Retreats 2 | . 1 . . . 1 . . . . . Traps | -11 -10 -10 -10 -9 -8 -7 -7 -7 -7 -6 ------- Run | Scr Mat Min Exi Min Mat Fac Low Low Dat Pro Traps Triggered 4 | . 3 . . . 1 . . . . . Indirectly . | . . . . . . . . . . . Trap Hack Attempts . | . . . . . . . . . . . Triggered . | . . . . . . . . . . . Disarmed . | . . . . . . . . . . . Reprogrammed . | . . . . . . . . . . . Reused . | . . . . . . . . . . . Traps Extracted . | . . . . . . . . . . . Installed . | . . . . . . . . . . . Triggered . | . . . . . . . . . . . Machines | -11 -10 -10 -10 -9 -8 -7 -7 -7 -7 -6 ---------- Run | Scr Mat Min Exi Min Mat Fac Low Low Dat Pro Machines Disabled 13 | . . . . . 4 9 . . . . Max in Single Turn 4 | . . . . . 1 4 . . . . Garrison Access 1 | . . . . . . 1 . . . . Machines Sabotaged . | . . . . . . . . . . . Garrisons Compromised . | . . . . . . . . . . . Overloaded Fab Kills . | . . . . . . . . . . . Fab Network Shutdowns 1 | . . . . . . 1 . . . . Hacking | -11 -10 -10 -10 -9 -8 -7 -7 -7 -7 -6 --------- Run | Scr Mat Min Exi Min Mat Fac Low Low Dat Pro Machines Accessed 25 | . 6 . 3 . 10 2 . . 4 . Terminals 12 | . 4 . . . 8 . . . . . Fabricators 1 | . . . . . . 1 . . . . Repair Stations 1 | . 1 . . . . . . . . . Recycling Units 2 | . 1 . . . 1 . . . . . Scanalyzers 1 | . . . . . 1 . . . . . Garrison Access 1 | . . . . . . 1 . . . . Total Hacks 83 | . 15 . 5 . 36 5 . . 22 . Successful 51 | . 8 . 5 . 13 3 . . 22 . Failed 32 | . 7 . . . 23 2 . . . . Catastrophic 4 | . 1 . . . 3 . . . . . Database Lockouts . | . . . . . . . . . . . Manual 27 | . 7 . 1 . 19 . . . . . Terminals 38 | . 10 . . . 28 . . . . . Fabricators 2 | . . . . . . 2 . . . . Repair Stations 4 | . 4 . . . . . . . . . Recycling Units 2 | . 1 . . . 1 . . . . . Scanalyzers 7 | . . . . . 7 . . . . . Garrison Access 3 | . . . . . . 3 . . . . Terminal Hacks 35 | . 1 . 5 . 7 . . . 22 . Record 15 | . . . 4 . . . . . 11 . Part Schematic 3 | . . . . . . . . . 3 . Robot Schematic 5 | . . . . . . . . . 5 . Robot Analysis 1 | . . . . . 1 . . . . . Prototype ID Bank 3 | . . . . . . . . . 3 . Branch Access Points 1 | . . . . . 1 . . . . . Terminal Index 1 | . . . . . 1 . . . . . Unreport Threat 2 | . 1 . . . 1 . . . . . Investigation Status 1 | . . . . . 1 . . . . . Recall Investigation 1 | . . . . . 1 . . . . . Recall Reinforcements 1 | . . . . . 1 . . . . . EX-Prototype ID Bank 1 | . . . 1 . . . . . . . Fabricator Hacks 2 | . . . . . . 2 . . . . Load Schematic 1 | . . . . . . 1 . . . . Build 1 | . . . . . . 1 . . . . Repair Station Hacks 4 | . 4 . . . . . . . . . Scan Component 2 | . 2 . . . . . . . . . Repair 2 | . 2 . . . . . . . . . Recycling Unit Hacks 1 | . . . . . 1 . . . . . Report Inventory 1 | . . . . . 1 . . . . . Scanalyzer 3 | . . . . . 3 . . . . . Insert Component 1 | . . . . . 1 . . . . . Analyze 2 | . . . . . 2 . . . . . Garrison Access Hacks 1 | . . . . . . 1 . . . . Seal Access 1 | . . . . . . 1 . . . . Unauthorized Hacks 5 | . 3 . . . 2 . . . . . Terminals 4 | . 2 . . . 2 . . . . . Botnet 4 | . 2 . . . 2 . . . . . Fabricators . | . . . . . . . . . . . Repair Stations . | . . . . . . . . . . . Recycling Units 1 | . 1 . . . . . . . . . Tunnel 1 | . 1 . . . . . . . . . Scanalyzers . | . . . . . . . . . . . Garrison Access . | . . . . . . . . . . . Data Cores Recovered 1 | . . . . . 1 . . . . . Used . | . . . . . . . . . . . Hacking Detections 15 | . 5 . . . 9 1 . . . . Full Trace Events 4 | . 2 . . . 2 . . . . . Feedback Events . | . . . . . . . . . . . Feedback Blocked . | . . . . . . . . . . . Robot Schematics Acquired 5 | . . . . . . . . . 5 . Robots Built . | . . . . . . . . . . . Matter . | . . . . . . . . . . . Time . | . . . . . . . . . . . Total Robot Build Rating . | . . . . . . . . . . . Part Schematics Acquired 4 | . . . . . 1 . . . 3 . Parts Built 1 | . . . . . . 1 . . . . Matter 285 | . . . . . . 285 . . . . Time 152 | . . . . . . 152 . . . . Total Part Build Rating 5 | . . . . . . 5 . . . . Parts Repaired 2 | . 2 . . . . . . . . . Time 52 | . 52 . . . . . . . . . Parts Recycled . | . . . . . . . . . . . Recycled Matter . | . . . . . . . . . . . Retrieved Matter . | . . . . . . . . . . . Retrieved Components . | . . . . . . . . . . . Parts Scanalyzed 1 | . . . . . 1 . . . . . Part Schematics Acquired 1 | . . . . . 1 . . . . . Parts Damaged . | . . . . . . . . . . . Bothacking | -11 -10 -10 -10 -9 -8 -7 -7 -7 -7 -6 ------------ Run | Scr Mat Min Exi Min Mat Fac Low Low Dat Pro Used RIF Installer . | . . . . . . . . . . . Robots Hacked . | . . . . . . . . . . . Non-combat . | . . . . . . . . . . . Combat . | . . . . . . . . . . . Robot Hacks Applied . | . . . . . . . . . . . Relay Couplers Released . | . . . . . . . . . . . Robots Rewired 2 | . . . . . . . 2 . . . Allies Hacked . | . . . . . . . . . . . Hacks Repelled . | . . . . . . . . . . . Allies | -11 -10 -10 -10 -9 -8 -7 -7 -7 -7 -6 -------- Run | Scr Mat Min Exi Min Mat Fac Low Low Dat Pro Total Allies 6 | . . 3 . . . . 2 . . 1 Largest Group 3 | . . 3 1 1 1 . 2 . . 1 Highest-Rated Group 94 | . . 40 16 16 16 . 62 . . 94 Highest-Rated Ally 94 | . . 16 16 16 16 . 32 . . 94 Total Orders . | . . . . . . . . . . . Ally Attacks 32 | . . 7 . . 6 . 4 . . 15 Total Damage 852 | . . 66 . . 99 . 127 . . 560 Kills 12 | . . 3 . . 2 . 1 . . 6 Allies Corrupted . | . . . . . . . . . . . Allies Melted 1 | . . . . . . . . . . 1 Intel | -11 -10 -10 -10 -9 -8 -7 -7 -7 -7 -6 ------- Run | Scr Mat Min Exi Min Mat Fac Low Low Dat Pro Robot Analysis Total 1 | . . . . . 1 . . . . . Derelict Logs Recovered 6 | . . 1 . . . . 1 2 . 2 Drone Launches . | . . . . . . . . . . . Drone Recoveries . | . . . . . . . . . . . Exploration | -11 -10 -10 -10 -9 -8 -7 -7 -7 -7 -6 ------------- Run | Scr Mat Min Exi Min Mat Fac Low Low Dat Pro Turns Passed 10862 | 112 1441 216 889 47 2617 1231 1720 814 193 1582 Spaces Moved 5473 | 55 695 151 730 38 1194 541 821 448 105 695 Core 5 | 3 . . . . . . . . . 2 Treads 3689 | 38 98 . . . 1125 541 821 448 105 513 Legs 181 | . 1 . . . . . . . . 180 Wheels 1598 | 14 596 151 730 38 69 . . . . . Hover . | . . . . . . . . . . . Flight . | . . . . . . . . . . . Fastest Speed 50 | 50 90 120 120 120 120 165 165 165 185 150 Average Speed 154 | 134 139 120 120 120 160 165 165 165 185 176 Slowest Speed 1850 | 160 330 120 120 120 220 165 165 185 185 1850 Overloaded Moves . | . . . . . . . . . . . Propulsion Burnouts . | . . . . . . . . . . . Robots Hopped . | . . . . . . . . . . . Cave-ins Triggered . | . . . . . . . . . . . Exploration Rate (%) 52 | 4 81 30 94 11 74 13 75 61 74 57 Regions Visited 10 Branch Regions 7 Pre-discovered Areas 3 | . 1 . . . . . 1 . 1 . Known Exits Taken 5 | . . . . . 1 1 1 1 1 . Unknown Exits Taken 5 | 1 1 1 1 1 . . . . . . Scrap Searched 5 | . . . . . . . 3 . . 2 Spaces Dug 20 | . . . . . 20 . . . . . Terrain Destroyed 165 | . 32 17 . . 33 53 5 11 . 14 Melee 20 | . . . . . 20 . . . . . Projectile 28 | . . . . . 4 . 5 11 . 8 AOE 117 | . 32 17 . . 9 53 . . . 6 Terrain Rammed . | . . . . . . . . . . . Walls Destroyed . | . . . . . . . . . . . Machines Disabled . | . . . . . . . . . . . Actions | -11 -10 -10 -10 -9 -8 -7 -7 -7 -7 -6 --------- Run | Scr Mat Min Exi Min Mat Fac Low Low Dat Pro Total 7393 | 82 978 180 745 40 1702 881 1184 517 104 980 Wait 1242 | 9 116 24 8 1 297 290 289 32 . 176 Move 5463 | 54 694 150 729 37 1193 540 820 447 104 695 Hop . | . . . . . . . . . . . Pick Up 78 | 7 27 . 2 1 22 10 5 4 . . Fast Attach 36 | 6 6 . . . 15 2 . . . 7 Attach 39 | 1 5 . 1 . 8 3 . 1 . 20 Detach 15 | . 3 . . . 5 5 . . . 2 Swap 89 | 1 17 1 . . 40 4 9 8 . 9 Drop 63 | . 14 . 5 1 31 3 4 4 . 1 Fire 300 | 4 96 3 . . 67 24 22 21 . 63 Melee 29 | . . . . . 24 . . . . 5 Ram . | . . . . . . . . . . . Kick 1 | . . . . . . . . . . 1 Crush . | . . . . . . . . . . . Escape Stasis . | . . . . . . . . . . . Rewire 38 | . . 2 . . . . 35 . . 1 Trap . | . . . . . . . . . . . Miscellaneous . | . . . . . . . . . . . Route ------- -11/Scrapyard -10/Materials (discovered 3 exits: [*Mat x2] / [*Min]) -10/Mines -10/Exiles (discovered 2 exits: [*Min x2]) -9/Mines -8/Materials (discovered 2 exits: *Fac x2) -7/Factory -7/Lower Caves -7/Lower Caves (discovered 2 exits: *Fac / *Dat) -7/Data Miner -6/Proximity Caves History --------- Turn | Location | Event 12 | -11/Scrapyard | Discovered new exit (range 15) 113 | -11/Scrapyard | Entered Materials 525 | -10/Materials | Build established: Hauler-Mutant 666 | -10/Materials | Discovered new exit (range 15) 858 | -10/Materials | Core integrity fell below 50% 1014 | -10/Materials | Discovered new exit (range 15) 1117 | -10/Materials | Repaired Com. Wheel 1144 | -10/Materials | Repaired Lgt. Treads 1441 | -10/Materials | Discovered new exit (range 9) 1554 | -10/Materials | Entered Mines 1558 | -10/Mines | Assisted by bots powering up and referring to "LRC-V3" 1584 | -10/Mines | Assembled infested the area 1614 | -10/Mines | Met 8R-AWN 1764 | -10/Mines | Discovered new exit (range 5) 1770 | -10/Mines | Entered Exiles 1770 | -10/Exiles | Accompanied by 1 ally 1787 | -10/Exiles | Discovered new exit (range 15) 1832 | -10/Exiles | Welcomed by 8R-AWN 1856 | -10/Exiles | Met EX-HEX 1926 | -10/Exiles | Met EX-DEC 1959 | -10/Exiles | Visited The Gauntlet 2148 | -10/Exiles | Met EX-BIN 2169 | -10/Exiles | Aligned with FarCom system 2170 | -10/Exiles | Given EX-Vault access code 2199 | -10/Exiles | Opened EX-Vault 2225 | -10/Exiles | Found XL Autogun Array 2256 | -10/Exiles | Warned to stay clear of 0b10 Research branches 2304 | -10/Exiles | Learned about 8R-AWN's background 2635 | -10/Exiles | Discovered new exit (range 10) 2659 | -10/Exiles | Left Exiles lab with XL Autogun Array 2659 | -10/Exiles | Entered Mines 2659 | -9/Mines | Accompanied by 1 ally 2683 | -9/Mines | Found a damaged Exp. Sensor Array with a note attached 2686 | -9/Mines | Found Prototype Device 2700 | -9/Mines | Discovered new exit (range 5) 2706 | -9/Mines | Entered Materials 2706 | -8/Materials | Accompanied by 1 ally 2706 | -8/Materials | Evolved 4 slots: Propulsion x1, Utility x2, Weapon x1 2706 | -8/Materials | Identified Exp. Sensor Array 3520 | -8/Materials | Build established: Hauler-Skirmisher 3630 | -8/Materials | Discovered new exit (range 11) 4315 | -8/Materials | Discovered new exit (range 10) 4327 | -8/Materials | Identified exit to Factory 5068 | -8/Materials | Build established: Hauler-Assassin 5323 | -8/Materials | Entered Factory 5323 | -7/Factory | Evolved 2 slots: Utility x1, Weapon x1 5423 | -7/Factory | Build established: Hauler-Skirmisher 5981 | -7/Factory | Fabricated Exp. Sensor Array (x1) 6239 | -7/Factory | Local fabrication network quarantined 6535 | -7/Factory | Discovered new exit (range 6) 6543 | -7/Factory | Identified exit to Lower Caves 6554 | -7/Factory | Entered Lower Caves 6624 | -7/Lower Caves | Attracted the attention of an 0b10 outpost 7164 | -7/Lower Caves | Learned location of Zion (-6) 7165 | -7/Lower Caves | Spotted B-75 Beast 7246 | -7/Lower Caves | Attracted the attention of an 0b10 checkpoint 8193 | -7/Lower Caves | Discovered new exit (range 13) 8212 | -7/Lower Caves | Identified exit to Lower Caves 8274 | -7/Lower Caves | Entered another Lower Caves area 8403 | -7/Lower Caves | Discovered new exit (range 10) 8414 | -7/Lower Caves | Identified exit to Factory 8548 | -7/Lower Caves | Learned location of 1 exit from Factory 8614 | -7/Lower Caves | Attracted the attention of an 0b10 checkpoint 9070 | -7/Lower Caves | Discovered new exit (range 11) 9072 | -7/Lower Caves | Learned Factory terminal intel 9086 | -7/Lower Caves | Identified exit to Data Miner 9088 | -7/Lower Caves | Entered Data Miner 9088 | -7/Data Miner | Discovered new exit (range 6) 9096 | -7/Data Miner | Identified exit to Proximity Caves 9124 | -7/Data Miner | Met Data Miner 9168 | -7/Data Miner | Learned location of Section 7 (-2) 9168 | -7/Data Miner | Acquired the access code to Warlord's prototype stash 9203 | -7/Data Miner | Received God Mode back door access code from Data Miner 9281 | -7/Data Miner | Entered Proximity Caves 9425 | -6/Proximity Caves | Learned 8 Factory zone layouts 9588 | -6/Proximity Caves | Attracted the attention of an 0b10 checkpoint 9589 | -6/Proximity Caves | Escorted by Enhanced Grunt 9921 | -6/Proximity Caves | Found Prototype Device 9921 | -6/Proximity Caves | Identified Exp. Thermal Shield 10136 | -6/Proximity Caves | Learned Factory emergency access door positions 10332 | -6/Proximity Caves | Core integrity fell below 50% 10338 | -6/Proximity Caves | Lost 15 parts (3p5n2u5w) 10813 | -6/Proximity Caves | Core integrity fell below 20% 10834 | -6/Proximity Caves | Lost 8 parts (2n1u5w) 10863 | -6/Proximity Caves | Destroyed by H-66 Slayer with Heavy Assault Rifle Last Messages --------------- 10806_ Penetrated by Slug. 10815_ Acquired Flexi-carbon Leg. 10816_ Penetrated by Slug. 10836_ H-66 Slayer heat damages Gauss Rifle. 10839_ Penetrated by Slug. 10839_ Adv. Beam Rifle destroyed. 10839_ Penetrated by Slug. 10845_ Shock Rifle destroyed. 10855_ Searching scrap... 10855_ Found Mak. Armor Plating. 10855_ Found 11 Matter. 10856_ Acquired 11 matter. 10856_ Penetrated by Slug. 10856_ Adv. Beam Rifle destroyed. 10856_ Penetrated by Slug. 10859_ Acquired Mak. Armor Plating. 10861_ Slammed into H-66 Slayer. 10863_ Slug penetrates Wall. 10863_ Penetrated by Slug. 10863_ Flexi-carbon Leg destroyed. Map ----- +----------------------------------------------------+ | ???###### #### ##????????????????????? | | ??## #??## % % ##?????????????????????? | | ### #???## ####### ?????????????? | | ######??#### ?????????????? | | ! #?## ##????## % #??????????????? | | ## ##?# ####### ###### #??????????????? | | #####?## ## #??????? #??????????????? | | ##???### #?????????#??????????????? | | ##??### #????????????????????????? | | ???## ### ##????????????????????????? | | ???# #### ### #?????????????????????????? | | #??# ## ### ##?## ##?????????????????????????? | | ##?#???# ### ##??###??????????????????????????? | | ##????# #?# ###?????????????????????????????? | | ###### ### ##????????????????????????????? | | ## #????????????????????????????? | | ###### #???????????????###??????????? | | ## #????# #?????????????? ??????????? | | #####?#### #????????????? ?????????? | | #?????# ##??????????## ?????????? | | #?????# ##????????? ????????? | | ####### # #???????? #????????? | | ## #???????# #????????? | | ### #?###### #?????????? | | ############?# #### h #??????????? | | ##????????????## ### @ #???????????? | | #??????????????### ## %### ##???????????? | | ?????????????????# ##? #????????????? | | ?????????????????## #?? #????????????? | | ??????????????????## #??## #????????????? | | ???????????????????#### ##????? ##????????????? | | ??????????????????????#####???????##?????????????? | | ?????????????????????????????????????????????????? | | ?????????????????????????????????????????????????? | | ?????????????????????????????????????????????????? | | ?????????????????????????????????????????????????? | | ?????????????????????????????????????????????????? | | ?????????????????????????????????????????????????? | | ?????????????????????????????????????????????????? | | ?????????????????????????????????????????????????? | | ?????????????????????????????????????????????????? | | ?????????????????????????????????????????????????? | | ?????????????????????????????????????????????????? | | ?????????????????????????????????????????????????? | | ?????????????????????????????????????????????????? | | ?????????????????????????????????????????????????? | | ?????????????????????????????????????????????????? | | | | | | | +----------------------------------------------------+ Best States ------------- Heat Dissipation 34 Energy Generation 19 Energy Capacity 500 Matter Stores 300 Matter Capacity 300 Sight Range 16 Robot Scan Range 30 Terrain Scan Range 18 Terrain Scan Density 10 Additional Mass Support 9 Armor Coverage 225 Resistance: KI 30 Resistance: TH 30 Evasion (%) 44 Recoil Reduction 3 Offensive Hacking 10 Defensive Hacking 10 Item Schematics ----------------- Exp. Sensor Array | -8/Materials | Scanalyzed Combat Drone Bay | -7/Data Miner | Free Lgt. Regenerative Plating | -7/Data Miner | Free Exp. Flexi-carbon Leg | -7/Data Miner | Free Robot Schematics ------------------ S-27 Virus | -7/Data Miner | Free G-50 Soldier | -7/Data Miner | Free G-67 Veteran | -7/Data Miner | Free P-70 Sage | -7/Data Miner | Free I-36 Angel | -7/Data Miner | Free Fabricated ------------ Exp. Sensor Array | x1 | -7/Factory Alien Tech Used ----------------- None Achievements -------------- A New Friend Just What I Needed The Oracle Challenges ------------ None Game ------ Seed GravityHeatInitializer Manual? 0 Play Time 02:32:57 Cumulative 30.4 hours Start 2020.10.20 @ 21:25:13 End 2020.10.22 @ 14:46:38 Sessions 3 Manual Loads 0 Difficulty Rogue Special Mode None Game No. 33 Rogue 33 Adventurer 0 Explorer 0 Win Type - Total 0 Types 0/0/0/0/0/0/0/0/0 Lore% 22 Gallery% 24 Achievement% 21 Wizard Run 0 Options --------- ASCII 0 Keyboard 1 Movement Numpad Keybinds 0 Fullscreen 1 Font 16/Dina Map View 76x50 Tactical HUD 1 Map Filters NONE Filters NONE Steam 1 RUN: 036de606-9b37-4070-b537-c3630d0e143f